fUSD/lending_fUSD_20260626
["ID","MTS","AMOUNT","RATE_DAILY","PERIOD"]
[426496817,1782481280000,500.0,0.00037236,120]
[426496820,1782481281000,500.0,0.00037236,120]
[426496819,1782481281000,500.0,0.00037236,120]
[426496818,1782481281000,500.0,0.00037236,120]
[426496821,1782481282000,500.0,0.00037236,120]
[426496823,1782481282000,500.0,0.00037236,120]
[426496822,1782481282000,500.0,0.00037236,120]
[426496827,1782481283000,548.25378794,0.00037236,120]
[426496826,1782481283000,500.0,0.00037236,120]
[426496825,1782481283000,500.0,0.00037236,120]
[426496824,1782481283000,500.0,0.00037236,120]
[426496977,1782481419000,301.12420077,0.000172,120]
[426497045,1782481566000,216.63051244,0.00037239,120]
[426497046,1782481575000,302.0,0.00037239,120]
[426497128,1782481658000,219.5409537,0.00037239,120]
[426497127,1782481658000,219.5409537,0.00037239,120]
[426497134,1782481749000,5000.0,0.00037239,120]
[426497164,1782481832000,-59.48682498,0.00013968,2]
[426497160,1782481832000,-216.48047229,0.00013781,2]
[426497169,1782481832000,-152.0,0.00014064,2]
[426497170,1782481832000,-152.0,0.00014064,2]
[426497172,1782481832000,-152.0,0.00014064,2]
[426497180,1782481832000,-152.0,0.00014064,2]
[426497168,1782481832000,-46456.7,0.00014064,2]
[426497173,1782481832000,-152.0,0.00014064,2]
[426497171,1782481832000,-152.0,0.00014064,2]
[426497175,1782481832000,-152.0,0.00014064,2]
[426497174,1782481832000,-152.0,0.00014064,2]
[426497167,1782481832000,-150.0,0.00014063,2]
[426497187,1782481832000,-166.66,0.00014165,2]
[426497166,1782481832000,-250.0,0.00014,2]
[426497162,1782481832000,-166.66,0.00013884,2]
[426497161,1782481832000,-220.72,0.00013794,2]
[426497159,1782481832000,-160.0,0.0001378,2]
[426497158,1782481832000,-164.02,0.00013735,2]
[426497157,1782481832000,-200.0,0.00013699,2]
[426497155,1782481832000,-130.62847651,0.00013627,2]
[426497156,1782481832000,-500.0,0.00013673,3]
[426497154,1782481832000,-343.14613815,0.00013627,2]
[426497152,1782481832000,-166.66,0.00013604,2]
[426497151,1782481832000,-166.66,0.00013324,2]
[426497153,1782481832000,-497.69538534,0.00013627,2]
[426497177,1782481832000,-152.0,0.00014064,2]
[426497163,1782481832000,-911.98317502,0.00013968,2]
[426497178,1782481832000,-248.0,0.00014064,2]
[426497197,1782481832000,-5878.7923,0.00014527,2]
[426497176,1782481832000,-236.0,0.00014064,2]
[426497208,1782481832000,-160.0,0.0001464,2]
[426497205,1782481832000,-500.0,0.00014626,2]
[426497207,1782481832000,-151.0,0.00014627,2]
[426497206,1782481832000,-150.0,0.00014627,2]
[426497203,1782481832000,-500.0,0.00014626,2]
[426497179,1782481832000,-152.0,0.00014064,2]
[426497202,1782481832000,-500.0,0.00014626,2]
[426497199,1782481832000,-500.0,0.00014626,2]
[426497198,1782481832000,-2500.0,0.00014527,2]
[426497201,1782481832000,-500.0,0.00014626,2]
[426497196,1782481832000,-1474.9609,0.00014527,2]
[426497200,1782481832000,-221.35471241,0.00014626,2]
[426497195,1782481832000,-6126.2233,0.00014527,2]
[426497204,1782481832000,-507.10545596,0.00014626,2]
[426497194,1782481832000,-151.0,0.00014527,2]
[426497192,1782481832000,-3246.60211932,0.00014527,2]
[426497181,1782481832000,-152.0,0.00014064,2]
[426497183,1782481832000,-152.0,0.00014064,2]
[426497182,1782481832000,-152.0,0.00014064,2]
[426497189,1782481832000,-971.47,0.00014309,2]
[426497184,1782481832000,-152.0,0.00014064,2]
[426497185,1782481832000,-152.0,0.00014064,2]
[426497191,1782481832000,-500.0,0.00014493,2]
[426497188,1782481832000,-174.62,0.00014208,2]
[426497190,1782481832000,-166.66,0.00014445,2]
[426497193,1782481832000,-1449.44123604,0.00014527,2]
[426497186,1782481832000,-192.0,0.00014064,2]
[426497234,1782481833000,-350.0,0.00014959,2]
[426497232,1782481833000,-2204.7845,0.000149,2]
[426497231,1782481833000,-171.20727644,0.000149,2]
[426497236,1782481833000,-1074.80797981,0.0001499,5]
[426497233,1782481833000,-783.32004159,0.000149,2]
[426497235,1782481833000,-1074.80797981,0.0001499,5]
[426497237,1782481833000,-1074.80797981,0.0001499,5]
[426497245,1782481833000,-551.3670844,0.00014991,2]
[426497242,1782481833000,-157.281339,0.00014991,2]
[426497240,1782481833000,-4463.8256487,0.00014991,2]
[426497243,1782481833000,-156.6926069,0.00014991,2]
[426497239,1782481833000,-18955.8007451,0.00014991,2]
[426497238,1782481833000,-971.47,0.0001499,2]
[426497244,1782481833000,-157.546433,0.00014991,2]
[426497246,1782481833000,-6657.0170305,0.00014991,2]
[426497227,1782481833000,-658.42642501,0.00014845,2]
[426497241,1782481833000,-151.0,0.00014991,2]
[426497230,1782481833000,-2591.17503326,0.000149,2]
[426497247,1782481833000,-192.787103,0.00014991,2]
[426497228,1782481833000,-200.0,0.0001488,2]
[426497210,1782481833000,-971.47,0.0001465,2]
[426497211,1782481833000,-263.92833634,0.00014656,2]
[426497213,1782481833000,-300.0,0.00014656,2]
[426497209,1782481833000,-285.05513885,0.0001464,2]
[426497212,1782481833000,-250.0,0.00014656,2]
[426497215,1782481833000,-600.0,0.00014656,2]
[426497225,1782481833000,-249.49696005,0.00014845,2]
[426497214,1782481833000,-600.0,0.00014656,2]
[426497229,1782481833000,-150.0,0.000149,2]
[426497216,1782481833000,-600.0,0.00014656,2]
[426497223,1782481833000,-3246.60211931,0.00014829,2]
[426497219,1782481833000,-571.14,0.000147,2]
[426497224,1782481833000,-500.0,0.00014836,2]
[426497218,1782481833000,-600.0,0.00014656,2]
[426497222,1782481833000,-500.0,0.00014801,2]
[426497220,1782481833000,-166.66,0.00014726,2]
[426497221,1782481833000,-500.0,0.00014726,2]
[426497226,1782481833000,-440.14221135,0.00014845,2]
[426497217,1782481833000,-600.0,0.00014656,2]
[426497248,1782481833000,-192.787103,0.00014991,2]
[426497253,1782481833000,-198.9421622,0.00014999,2]
[426497252,1782481833000,-151.0,0.00014991,2]
[426497277,1782481833000,-500.0,0.00014999,2]
[426497278,1782481833000,-500.0,0.00014999,2]
[426497274,1782481833000,-161.590149,0.00014999,2]
[426497276,1782481833000,-500.0,0.00014999,2]
[426497286,1782481833000,-500.0,0.00014999,2]
[426497279,1782481833000,-500.0,0.00014999,2]
[426497275,1782481833000,-546.25176112,0.00014999,2]
[426497280,1782481833000,-500.0,0.00014999,2]
[426497284,1782481833000,-500.0,0.00014999,2]
[426497282,1782481833000,-500.0,0.00014999,2]
[426497283,1782481833000,-428.65300558,0.00014999,2]
[426497281,1782481833000,-500.0,0.00014999,2]
[426497285,1782481833000,-500.0,0.00014999,2]
[426497288,1782481833000,-300.0,0.00014999,2]
[426497287,1782481833000,-500.0,0.00014999,2]
[426497289,1782481833000,-666.0,0.00014999,2]
[426497290,1782481833000,-284.0,0.00015,5]
[426497272,1782481833000,-500.0,0.00014999,2]
[426497273,1782481833000,-500.0,0.00014999,2]
[426497249,1782481833000,-192.787103,0.00014991,2]
[426497266,1782481833000,-500.0,0.00014999,2]
[426497271,1782481833000,-500.0,0.00014999,2]
[426497250,1782481833000,-192.787103,0.00014991,2]
[426497251,1782481833000,-151.0,0.00014991,2]
[426497255,1782481833000,-159.35290951,0.00014999,2]
[426497256,1782481833000,-500.0,0.00014999,2]
[426497254,1782481833000,-500.0,0.00014999,2]
[426497257,1782481833000,-264.45039757,0.00014999,2]
[426497261,1782481833000,-465.4539345,0.00014999,2]
[426497259,1782481833000,-500.0,0.00014999,2]
[426497260,1782481833000,-500.0,0.00014999,2]
[426497258,1782481833000,-254.93986188,0.00014999,2]
[426497262,1782481833000,-150.0,0.00014999,2]
[426497264,1782481833000,-500.0,0.00014999,2]
[426497263,1782481833000,-510.5756982,0.00014999,2]
[426497269,1782481833000,-500.0,0.00014999,2]
[426497270,1782481833000,-500.0,0.00014999,2]
[426497268,1782481833000,-500.0,0.00014999,2]
[426497267,1782481833000,-500.0,0.00014999,2]
[426497265,1782481833000,-500.0,0.00014999,2]
[426497292,1782481834000,-132837.26851493,0.00015,2]
[426497291,1782481834000,-151.0,0.00015,5]
[426497295,1782481834000,-1254.41808677,0.00015,2]
[426497294,1782481834000,-18486.59346916,0.00015,2]
[426497293,1782481834000,-40333.98500412,0.00015,2]
[426497296,1782481834000,-520.62527295,0.00015,2]
[426497317,1782481838000,-700.0,0.00015,2]
[426497316,1782481838000,-2245.03622889,0.00015,2]
[426497315,1782481838000,-426.4607146,0.00015,2]
[426497314,1782481838000,-404.3482089,0.00015,2]
[426497313,1782481838000,-484.19611743,0.00015,2]
[426497312,1782481838000,-1351.90172374,0.00015,2]
[426497311,1782481838000,-23062.05981801,0.00015,2]
[426497310,1782481838000,-500.0,0.00014999,2]
[426497309,1782481838000,-500.0,0.00014999,2]
[426497308,1782481838000,-500.0,0.00014999,2]
[426497319,1782481839000,-888.72,0.00015,2]
[426497318,1782481839000,-33503.357581,0.00015,2]
[426497501,1782481840000,-3100.0,0.00015,2]
[426497497,1782481840000,-23093.08099808,0.00015,2]
[426497482,1782481840000,-790.5766307,0.00015,2]
[426497466,1782481840000,-166.69,0.00012728,2]
[426497472,1782481840000,-609.07194401,0.00015,2]
[426497587,1782481843000,-9534.05378606,0.00015,2]
[426497588,1782481843000,-317.99539057,0.00015,2]
[426497586,1782481843000,-1550.0,0.00015,2]
[426497591,1782481844000,-733.87205187,0.00015,2]
[426497590,1782481844000,-295774.08953475,0.00015,2]
[426497592,1782481844000,-888.675,0.00015,2]
[426497589,1782481844000,-618.47086119,0.00015,2]
[426497594,1782481844000,-449.1506594,0.00015,2]
[426497593,1782481844000,-4199.58,0.00015,2]
[426497688,1782481846000,-450.0,0.00015,2]
[426497686,1782481846000,-946.9593104,0.000149,2]
[426497689,1782481846000,-290.81481571,0.00015,2]
[426497687,1782481846000,-543.93505793,0.00015,2]
[426497690,1782481847000,-2411.9937147,0.00015,2]
[426497692,1782481847000,-1242.48,0.00015,2]
[426497691,1782481847000,-83764.53228411,0.00015,2]
[426497694,1782481847000,-1478.77264254,0.00015,2]
[426497695,1782481847000,-4968.65150895,0.00015,2]
[426497693,1782481847000,-369.77466619,0.00015,2]
[426497726,1782481960000,156.1704502,0.00037239,120]
[426497725,1782481960000,151.0,0.00037239,120]
[426497731,1782481961000,156.1704502,0.00037239,120]
[426497730,1782481961000,156.1704502,0.00037239,120]
[426497729,1782481961000,225.18697532,0.00037239,120]
[426497728,1782481961000,200.0,0.00037239,120]
[426497727,1782481961000,242.15909246,0.00037239,120]
[426497737,1782482206000,1482.14032348,0.00037239,120]
[426497738,1782482213000,5000.0,0.00037239,120]
[426497764,1782482258000,177.87651244,0.00037239,120]
[426497763,1782482258000,177.87651243,0.00037239,120]
[426497770,1782482260000,151.0,0.00037239,120]
[426497774,1782482260000,200.0,0.00037239,120]
[426497773,1782482260000,262.60091207,0.00037239,120]
[426497771,1782482260000,233.5188934,0.00037239,120]
[426497776,1782482261000,156.1704502,0.00037239,120]
[426497778,1782482261000,156.1704502,0.00037239,120]
[426497783,1782482262000,156.1704502,0.00037239,120]
[426497794,1782482269000,3058.13338361,0.000315,120]
[426497796,1782482275000,5000.0,0.00037239,120]
[426497799,1782482301000,500.0,0.00037239,120]
[426497798,1782482301000,500.0,0.00037239,120]
[426497797,1782482301000,500.0,0.00037239,120]
[426497800,1782482302000,500.0,0.00037239,120]
[426497801,1782482302000,263.85050735,0.00037239,120]
[426497802,1782482395000,5000.0,0.00037236,120]
[426497803,1782482401000,4335.25,0.00037236,120]
[426497806,1782482402000,4335.25,0.00037236,120]
[426497805,1782482402000,4335.25,0.00037236,120]
[426497804,1782482402000,4335.25,0.00037236,120]
[426497808,1782482403000,4335.25,0.00037236,120]
[426497807,1782482403000,4335.25,0.00037236,120]
[426497809,1782482404000,4335.25,0.00037236,120]
[426497810,1782482405000,4335.25,0.00037236,120]
[426497812,1782482405000,4335.25,0.00037236,120]
[426497813,1782482405000,4335.25,0.00037236,120]
[426497811,1782482405000,4335.25,0.00037236,120]
[426497816,1782482406000,4335.25,0.00037236,120]
[426497815,1782482406000,4335.25,0.00037236,120]
[426497814,1782482406000,4335.25,0.00037236,120]
[426497819,1782482407000,4335.25,0.00037236,120]
[426497818,1782482407000,4335.25,0.00037236,120]
[426497817,1782482407000,4335.25,0.00037236,120]
[426497820,1782482408000,4335.25,0.00037236,120]
[426497822,1782482408000,4335.25,0.00037236,120]
[426497821,1782482408000,4335.25,0.00037236,120]
[426497826,1782482409000,4335.45538683,0.00037236,120]
[426497825,1782482409000,4335.25,0.00037236,120]
[426497824,1782482409000,4335.25,0.00037236,120]
[426497823,1782482409000,4335.25,0.00037236,120]
[426497835,1782482579000,10000.0,0.00037236,120]
[426497854,1782482759000,500.0,0.00037236,120]
[426497858,1782482760000,500.0,0.00037236,120]
[426497857,1782482760000,500.0,0.00037236,120]
[426497856,1782482760000,500.0,0.00037236,120]
[426497859,1782482761000,500.0,0.00037236,120]
[426497861,1782482762000,500.0,0.00037236,120]
[426497860,1782482762000,500.0,0.00037236,120]
[426497862,1782482762000,511.19977887,0.00037236,120]
[426497867,1782482947000,166.36838171,0.00037237,120]
[426497904,1782483033000,-151.0,0.00013864,2]
[426497902,1782483033000,-150.0,0.00013864,2]
[426497903,1782483033000,-151.0,0.00013864,2]
[426497907,1782483033000,-71.39362964,0.00013864,2]
[426497908,1782483033000,-151.0,0.00013864,2]
[426497909,1782483033000,-150.0,0.00013864,2]
[426497910,1782483033000,-152.0,0.00013864,2]
[426497911,1782483033000,-150.0,0.00013864,2]
[426497913,1782483033000,-152.0,0.00013864,2]
[426497914,1782483033000,-152.0,0.00013864,2]
[426497912,1782483033000,-152.0,0.00013864,2]
[426497916,1782483033000,-153.0,0.00013864,2]
[426497917,1782483033000,-1161.88003445,0.00013864,2]
[426497918,1782483033000,-822.2538549,0.00013864,2]
[426497919,1782483033000,-51202.64041065,0.00013864,2]
[426497923,1782483033000,-152.0,0.00013864,2]
[426497920,1782483033000,-152.0,0.00013864,2]
[426497915,1782483033000,-151.0,0.00013864,2]
[426497906,1782483033000,-81.60637036,0.00013864,2]
[426497901,1782483033000,-151.0,0.00013864,2]
[426497900,1782483033000,-124.97420913,0.00013864,2]
[426497884,1782483033000,-166.69,0.00012756,2]
[426497887,1782483033000,-1574.93,0.00013567,2]
[426497886,1782483033000,-640.64,0.00013567,2]
[426497885,1782483033000,-797.83,0.00013497,2]
[426497891,1782483033000,-242.84,0.0001367,3]
[426497926,1782483033000,-152.0,0.00013864,2]
[426497888,1782483033000,-176.57,0.0001357,2]
[426497890,1782483033000,-289.97,0.00013608,2]
[426497894,1782483033000,-151.0,0.00013864,2]
[426497889,1782483033000,-150.0,0.00013571,2]
[426497893,1782483033000,-151.0,0.00013864,2]
[426497892,1782483033000,-150.0,0.00013863,2]
[426497895,1782483033000,-5.95933815,0.00013864,2]
[426497896,1782483033000,-144.04066185,0.00013864,2]
[426497897,1782483033000,-152.0,0.00013864,2]
[426497899,1782483033000,-25.02579087,0.00013864,2]
[426497898,1782483033000,-151.0,0.00013864,2]
[426497905,1782483033000,-150.0,0.00013864,2]
[426497925,1782483033000,-498.2109,0.00013864,2]
[426497955,1782483033000,-152.0,0.00013964,2]
[426497921,1782483033000,-152.0,0.00013864,2]
[426497949,1782483033000,-152.0,0.00013964,2]
[426497948,1782483033000,-296.0,0.00013963,2]
[426497950,1782483033000,-152.0,0.00013964,2]
[426497952,1782483033000,-152.0,0.00013964,2]
[426497951,1782483033000,-152.0,0.00013964,2]
[426497953,1782483033000,-240.0,0.00013964,2]
[426497954,1782483033000,-152.0,0.00013964,2]
[426497957,1782483033000,-152.0,0.00013964,2]
[426497958,1782483033000,-296.0,0.00013964,2]
[426497959,1782483033000,-152.0,0.00013964,2]
[426497961,1782483033000,-152.0,0.00013964,2]
[426497956,1782483033000,-152.0,0.00013964,2]
[426497963,1782483033000,-244.0,0.00013964,2]
[426497962,1782483033000,-152.0,0.00013964,2]
[426497964,1782483033000,-152.0,0.00013964,2]
[426497965,1782483033000,-152.0,0.00013964,2]
[426497924,1782483033000,-192.0,0.00013864,2]
[426497943,1782483033000,-152.0,0.00013963,2]
[426497946,1782483033000,-192.0,0.00013963,2]
[426497960,1782483033000,-152.0,0.00013964,2]
[426497947,1782483033000,-152.0,0.00013963,2]
[426497942,1782483033000,-240.0,0.00013963,2]
[426497928,1782483033000,-248.0,0.00013864,2]
[426497927,1782483033000,-152.0,0.00013864,2]
[426497930,1782483033000,-152.0,0.00013864,2]
[426497922,1782483033000,-152.0,0.00013864,2]
[426497929,1782483033000,-152.0,0.00013864,2]
[426497935,1782483033000,-240.0,0.00013864,2]
[426497934,1782483033000,-152.0,0.00013864,2]
[426497933,1782483033000,-150.0,0.00013864,2]
[426497938,1782483033000,-1404.76348818,0.00013963,2]
[426497937,1782483033000,-289.97,0.00013949,2]
[426497931,1782483033000,-152.0,0.00013864,2]
[426497936,1782483033000,-173.24479151,0.00013895,2]
[426497939,1782483033000,-151.0,0.00013963,2]
[426497940,1782483033000,-152.0,0.00013963,2]
[426497944,1782483033000,-152.0,0.00013963,2]
[426497941,1782483033000,-152.0,0.00013963,2]
[426497932,1782483033000,-150.3383746,0.00013864,2]
[426497945,1782483033000,-152.0,0.00013963,2]
[426497985,1782483034000,-150.0,0.00013964,2]
[426497987,1782483034000,-500.0,0.00013964,2]
[426497980,1782483034000,-150.0,0.00013964,2]
[426497982,1782483034000,-151.0,0.00013964,2]
[426497981,1782483034000,-153.0,0.00013964,2]
[426497988,1782483034000,-216.48047229,0.00013979,2]
[426497984,1782483034000,-153.0,0.00013964,2]
[426497989,1782483034000,-250.0,0.00014,2]
[426497991,1782483034000,-155.85215518,0.00014213,2]
[426497990,1782483034000,-151.0,0.00014213,2]
[426497983,1782483034000,-152.0,0.00013964,2]
[426497986,1782483034000,-151.0,0.00013964,2]
[426497975,1782483034000,-152.0,0.00013964,2]
[426497977,1782483034000,-300.0,0.00013964,2]
[426497978,1782483034000,-152.0,0.00013964,2]
[426497976,1782483034000,-296.0,0.00013964,2]
[426497971,1782483034000,-152.0,0.00013964,2]
[426497973,1782483034000,-152.0,0.00013964,2]
[426497972,1782483034000,-152.0,0.00013964,2]
[426497974,1782483034000,-292.0,0.00013964,2]
[426497970,1782483034000,-152.0,0.00013964,2]
[426497969,1782483034000,-292.0,0.00013964,2]
[426497968,1782483034000,-152.0,0.00013964,2]
[426497966,1782483034000,-152.0,0.00013964,2]
[426497967,1782483034000,-152.0,0.00013964,2]
[426497992,1782483034000,-259.20868584,0.00014238,2]
[426497979,1782483034000,-150.0,0.00013964,2]
[426497997,1782483034000,-1587.4,0.00014497,2]
[426498008,1782483034000,-260.53982326,0.0001486,2]
[426497995,1782483034000,-7736.14,0.00014497,2]
[426498021,1782483034000,-5069.477146,0.00014998,2]
[426498023,1782483034000,-872.61289078,0.00014998,2]
[426498022,1782483034000,-3329.302119,0.00014998,2]
[426498020,1782483034000,-8465.3335113,0.00014998,2]
[426498019,1782483034000,-255.0,0.00014986,2]
[426498017,1782483034000,-289.97,0.00014969,2]
[426498018,1782483034000,-500.0,0.00014985,2]
[426497993,1782483034000,-289.97,0.00014289,2]
[426498016,1782483034000,-350.0,0.00014959,2]
[426498014,1782483034000,-1268.26108157,0.000149,2]
[426498012,1782483034000,-171.75841341,0.000149,2]
[426498013,1782483034000,-171.20727644,0.000149,2]
[426498010,1782483034000,-200.0,0.0001488,2]
[426498015,1782483034000,-10000.0,0.0001494,2]
[426498005,1782483034000,-1470.43361118,0.00014694,2]
[426498011,1782483034000,-2597.28169552,0.00014899,2]
[426498002,1782483034000,-500.0,0.00014626,2]
[426498000,1782483034000,-3995.7038,0.00014527,2]
[426497996,1782483034000,-1506.63,0.00014497,2]
[426497999,1782483034000,-6814.67,0.00014504,2]
[426497994,1782483034000,-322.01,0.00014497,2]
[426497998,1782483034000,-3062.44869743,0.000145,2]
[426498003,1782483034000,-500.0,0.00014626,2]
[426498004,1782483034000,-289.97,0.00014629,2]
[426498006,1782483034000,-501.17447858,0.00014745,2]
[426498009,1782483034000,-389.75199373,0.0001486,2]
[426498007,1782483034000,-500.0,0.00014813,2]
[426498001,1782483034000,-500.0,0.00014626,2]
[426498051,1782483037000,-500.0,0.00014996,2]
[426498050,1782483037000,-500.0,0.00014996,2]
[426498053,1782483037000,-233.88322029,0.00014996,2]
[426498056,1782483037000,-500.0,0.00014996,2]
[426498054,1782483037000,-500.0,0.00014996,2]
[426498055,1782483037000,-231.80973191,0.00014996,2]
[426498057,1782483037000,-100.1070478,0.00014996,2]
[426498052,1782483037000,-500.0,0.00014996,2]
[426498059,1782483038000,-223.6070478,0.00014996,2]
[426498058,1782483038000,-399.8929522,0.00014996,2]
[426498060,1782483038000,-276.3929522,0.00014996,2]
[426498067,1782483038000,-397.0570478,0.00014996,2]
[426498062,1782483038000,-500.0,0.00014996,2]
[426498063,1782483038000,-500.0,0.00014996,2]
[426498065,1782483038000,-500.0,0.00014996,2]
[426498064,1782483038000,-500.0,0.00014996,2]
[426498061,1782483038000,-500.0,0.00014996,2]
[426498188,1782483039000,-433.16696305,0.00014996,2]
[426498187,1782483039000,-102.9429522,0.00014996,2]
[426498191,1782483040000,-272.90621605,0.00014996,2]
[426498189,1782483040000,-66.83303695,0.00014996,2]
[426498190,1782483040000,-500.0,0.00014996,2]
[426498226,1782483048000,-500.0,0.00014996,2]
[426498230,1782483048000,-61.65538157,0.00014996,2]
[426498231,1782483048000,-479.16347909,0.00014996,2]
[426498227,1782483048000,-361.28538157,0.00014996,2]
[426498218,1782483048000,-227.09378395,0.00014996,2]
[426498225,1782483048000,-473.34290699,0.00014996,2]
[426498220,1782483048000,-26.65709301,0.00014996,2]
[426498228,1782483048000,-138.71461843,0.00014996,2]
[426498229,1782483048000,-500.0,0.00014996,2]
[426498232,1782483048000,-500.0,0.00014996,2]
[426498236,1782483048000,-3191.56700072,0.00014998,2]
[426498233,1782483048000,-500.0,0.00014996,2]
[426498235,1782483048000,-500.0,0.00014996,2]
[426498240,1782483048000,-197.03936257,0.00014999,2]
[426498241,1782483048000,-185.11527829,0.00014999,2]
[426498238,1782483048000,-1033.31351895,0.00014999,2]
[426498237,1782483048000,-1218.2549246,0.00014998,2]
[426498239,1782483048000,-557.69,0.00014999,2]
[426498242,1782483048000,-231.0231613,0.00014999,2]
[426498243,1782483048000,-500.0,0.00014999,2]
[426498244,1782483048000,-615.02976045,0.00014999,2]
[426498234,1782483048000,-500.0,0.00014996,2]
[426498245,1782483049000,-500.0,0.00014999,2]
[426498247,1782483049000,-157.0,0.00015,5]
[426498248,1782483049000,-134637.74282397,0.00015,2]
[426498246,1782483049000,-516.17988133,0.00014999,2]
[426498249,1782483049000,-6261.93367199,0.00015,2]
[426498254,1782483049000,-6614.05021147,0.00015,2]
[426498251,1782483049000,-1200.0,0.000149,2]
[426498250,1782483049000,-297703.38126163,0.00015,2]
[426498252,1782483049000,-1401.99464938,0.000149,2]
[426498255,1782483049000,-2174.04452133,0.00015,2]
[426498253,1782483049000,-4110.90671192,0.000149,2]
[426498334,1782483124000,250.003924,0.00037237,120]
[426498335,1782483217000,500.0,0.00037237,120]
[426498338,1782483218000,500.0,0.00037237,120]
[426498337,1782483218000,500.0,0.00037237,120]
[426498336,1782483218000,500.0,0.00037237,120]
[426498341,1782483219000,500.0,0.00037237,120]
[426498340,1782483219000,500.0,0.00037237,120]
[426498339,1782483219000,500.0,0.00037237,120]
[426498342,1782483220000,500.0,0.00037237,120]
[426498343,1782483220000,500.0,0.00037237,120]
[426498345,1782483220000,314.2661939,0.00037237,120]
[426498344,1782483220000,500.0,0.00037237,120]
[426498346,1782483227000,500.0,0.00037237,120]
[426498350,1782483228000,500.0,0.00037237,120]
[426498349,1782483228000,500.0,0.00037237,120]
[426498348,1782483228000,500.0,0.00037237,120]
[426498347,1782483228000,500.0,0.00037237,120]
[426498352,1782483229000,569.26571901,0.00037237,120]
[426498351,1782483229000,500.0,0.00037237,120]
[426498353,1782483249000,259.85472851,0.00030136,120]
[426498354,1782483265000,500.0,0.00037237,120]
[426498355,1782483266000,500.0,0.00037237,120]
[426498357,1782483266000,500.0,0.00037237,120]
[426498356,1782483266000,500.0,0.00037237,120]
[426498358,1782483267000,500.0,0.00037237,120]
[426498359,1782483267000,403.5810829,0.00037237,120]
[426498361,1782483273000,2351.69,0.00037237,120]
[426498360,1782483273000,2351.69,0.00037237,120]
[426498364,1782483274000,2351.69,0.00037237,120]
[426498363,1782483274000,2351.69,0.00037237,120]
[426498362,1782483274000,2351.69,0.00037237,120]
[426498367,1782483275000,2351.69,0.00037237,120]
[426498366,1782483275000,2351.69,0.00037237,120]
[426498365,1782483275000,2351.69,0.00037237,120]
[426498369,1782483276000,2351.69,0.00037237,120]
[426498368,1782483276000,2351.69,0.00037237,120]
[426498370,1782483276000,2351.69,0.00037237,120]
[426498371,1782483277000,2351.69,0.00037237,120]
[426498374,1782483280000,2351.69,0.00037237,120]
[426498373,1782483280000,2351.69,0.00037237,120]
[426498372,1782483280000,2351.69,0.00037237,120]
[426498375,1782483281000,2351.69,0.00037237,120]
[426498376,1782483281000,2351.69,0.00037237,120]
[426498377,1782483282000,2351.69,0.00037237,120]
[426498378,1782483282000,2351.69,0.00037237,120]
[426498381,1782483283000,2351.69,0.00037237,120]
[426498380,1782483283000,2351.69,0.00037237,120]